[Event "Early-Titled-Tuesday-Blitz-September-05-2023"]
[Site "Chess.com"]
[Date "2023.09.05"]
[Round "5"]
[White "DKmirl"]
[Black "Fengwi"]
[Result "1-0"]
[WhiteElo "2270"]
[BlackElo "2221"]
[TimeControl "180+1"]
[EndTime "8:55:20 PDT"]
[Termination "DKmirl won by checkmate"]

1. d4 {[%clk 0:03:00.9]} 1... d5 {[%clk 0:02:55]} 2. Nf3 {[%clk 0:02:59.7]} 2...
Nf6 {[%clk 0:02:44.9]} 3. g3 {[%clk 0:02:59.9]} 3... e6 {[%clk 0:02:38.4]} 4.
Bg2 {[%clk 0:03:00.1]} 4... b5 {[%clk 0:02:34.9]} 5. O-O {[%clk 0:02:57.2]} 5...
Be7 {[%clk 0:02:32.9]} 6. c3 {[%clk 0:02:57.1]} 6... O-O {[%clk 0:02:30.9]} 7.
a4 {[%clk 0:02:57.5]} 7... b4 {[%clk 0:02:11.1]} 8. cxb4 {[%clk 0:02:56.1]} 8...
Bxb4 {[%clk 0:01:54.6]} 9. Nc3 {[%clk 0:02:56.1]} 9... Nbd7 {[%clk 0:01:41.8]}
10. Ne5 {[%clk 0:02:53.1]} 10... Nxe5 {[%clk 0:01:38.9]} 11. dxe5 {[%clk
0:02:48]} 11... Nd7 {[%clk 0:01:39.1]} 12. e4 {[%clk 0:02:46.5]} 12... c6 {[%clk
0:01:21.5]} 13. exd5 {[%clk 0:02:44]} 13... cxd5 {[%clk 0:01:21.1]} 14. Bf4
{[%clk 0:02:14.9]} 14... Ba6 {[%clk 0:01:18]} 15. Re1 {[%clk 0:02:13.6]} 15...
Qa5 {[%clk 0:01:16.7]} 16. Bd2 {[%clk 0:02:12.5]} 16... Rab8 {[%clk 0:01:13.9]}
17. Qg4 {[%clk 0:01:27.5]} 17... Rfc8 {[%clk 0:00:14.6]} 18. Red1 {[%clk
0:01:15.6]} 18... Nxe5 {[%clk 0:00:13]} 19. Qd4 {[%clk 0:01:02.7]} 19... Nd3
{[%clk 0:00:10]} 20. Nb5 {[%clk 0:00:35.6]} 20... Bxd2 {[%clk 0:00:05.7]} 21.
Qxd3 {[%clk 0:00:35.8]} 21... Bb4 {[%clk 0:00:04]} 22. Bf1 {[%clk 0:00:35.3]}
22... Bf8 {[%clk 0:00:02.2]} 23. b3 {[%clk 0:00:29.7]} 23... Qb6 {[%clk
0:00:02.2]} 24. Rab1 {[%clk 0:00:21.8]} 24... Bb7 {[%clk 0:00:02]} 25. Qd2
{[%clk 0:00:18.4]} 25... a6 {[%clk 0:00:02.4]} 26. Nd4 {[%clk 0:00:17.5]} 26...
Bb4 {[%clk 0:00:02.3]} 27. Qe3 {[%clk 0:00:14.7]} 27... Rc3 {[%clk 0:00:02.5]}
28. Rd3 {[%clk 0:00:13.6]} 28... Rxd3 {[%clk 0:00:01.8]} 29. Qxd3 {[%clk
0:00:14.5]} 29... Bc5 {[%clk 0:00:01.7]} 30. Nc2 {[%clk 0:00:13.8]} 30... Bxf2+
{[%clk 0:00:01.4]} 31. Kg2 {[%clk 0:00:14.1]} 31... Bc5 {[%clk 0:00:01.9]} 32.
Kh3 {[%clk 0:00:12.5]} 32... e5 {[%clk 0:00:01.3]} 33. g4 {[%clk 0:00:12.4]}
33... Qe6 {[%clk 0:00:01.9]} 34. Qf5 {[%clk 0:00:11.2]} 34... Qxf5 {[%clk
0:00:01.8]} 35. gxf5 {[%clk 0:00:12.1]} 35... Bc8 {[%clk 0:00:02.1]} 36. Kg4
{[%clk 0:00:10.7]} 36... g6 {[%clk 0:00:02.7]} 37. Kf3 {[%clk 0:00:09.8]} 37...
Bxf5 {[%clk 0:00:02.2]} 38. Rc1 {[%clk 0:00:10.2]} 38... Bb4 {[%clk 0:00:02]}
39. Nxb4 {[%clk 0:00:09.1]} 39... Rxb4 {[%clk 0:00:02.9]} 40. Bxa6 {[%clk
0:00:08.1]} 40... Rxb3+ {[%clk 0:00:03]} 41. Kf2 {[%clk 0:00:07.7]} 41... Rb2+
{[%clk 0:00:02.6]} 42. Kg3 {[%clk 0:00:07.8]} 42... d4 {[%clk 0:00:02.7]} 43. a5
{[%clk 0:00:06.7]} 43... Ra2 {[%clk 0:00:02.1]} 44. Rc5 {[%clk 0:00:06.3]} 44...
f6 {[%clk 0:00:02.5]} 45. Bc4+ {[%clk 0:00:06.1]} 45... Kg7 {[%clk 0:00:02.9]}
46. Bxa2 {[%clk 0:00:06.5]} 46... h5 {[%clk 0:00:03.2]} 47. Bc4 {[%clk
0:00:06.1]} 47... g5 {[%clk 0:00:03.4]} 48. a6 {[%clk 0:00:06.3]} 48... g4
{[%clk 0:00:04.3]} 49. a7 {[%clk 0:00:05.9]} 49... Be4 {[%clk 0:00:04]} 50. Bd5
{[%clk 0:00:06]} 50... d3 {[%clk 0:00:03.5]} 51. Bxe4 {[%clk 0:00:05.9]} 51...
d2 {[%clk 0:00:04.1]} 52. Rd5 {[%clk 0:00:06.2]} 52... Kh6 {[%clk 0:00:02.9]}
53. Rxd2 {[%clk 0:00:06.5]} 53... Kg5 {[%clk 0:00:03.8]} 54. Kf2 {[%clk
0:00:06.4]} 54... h4 {[%clk 0:00:04.7]} 55. a8=Q {[%clk 0:00:06.4]} 55... Kf4
{[%clk 0:00:05.6]} 56. Qa3 {[%clk 0:00:06.3]} 56... g3+ {[%clk 0:00:06.1]} 57.
hxg3+ {[%clk 0:00:06.4]} 57... hxg3+ {[%clk 0:00:07]} 58. Qxg3+ {[%clk
0:00:06.7]} 58... Kxe4 {[%clk 0:00:07.9]} 59. Qf3# {[%clk 0:00:07]} 1-0

[Event "Early-Titled-Tuesday-Blitz-September-05-2023"]
[Site "Chess.com"]
[Date "2023.09.05"]
[Round "5"]
[White "Semetey"]
[Black "TioCridineno"]
[Result "0-1"]
[WhiteElo "2564"]
[BlackElo "2350"]
[TimeControl "180+1"]
[EndTime "8:55:23 PDT"]
[Termination "TioCridineno won by resignation"]

1. Nf3 {[%clk 0:02:58.5]} 1... Nf6 {[%clk 0:02:59.8]} 2. g3 {[%clk 0:02:57.7]}
2... g6 {[%clk 0:03:00.2]} 3. Bg2 {[%clk 0:02:58.6]} 3... Bg7 {[%clk 0:03:00.8]}
4. O-O {[%clk 0:02:59]} 4... O-O {[%clk 0:03:01.5]} 5. b3 {[%clk 0:02:59.2]}
5... d6 {[%clk 0:03:00.8]} 6. d4 {[%clk 0:02:56.8]} 6... c6 {[%clk 0:03:00.3]}
7. Bb2 {[%clk 0:02:56.8]} 7... Nbd7 {[%clk 0:03:00]} 8. c4 {[%clk 0:02:56.1]}
8... Re8 {[%clk 0:02:58]} 9. Nc3 {[%clk 0:02:52.4]} 9... e5 {[%clk 0:02:57.8]}
10. e3 {[%clk 0:02:51]} 10... Qc7 {[%clk 0:02:56.8]} 11. Qc2 {[%clk 0:02:49.6]}
11... h5 {[%clk 0:02:52.5]} 12. Rfd1 {[%clk 0:02:48.6]} 12... a6 {[%clk
0:02:48.6]} 13. a4 {[%clk 0:02:46.7]} 13... Nf8 {[%clk 0:02:41.2]} 14. h3 {[%clk
0:02:44]} 14... N8h7 {[%clk 0:02:36.6]} 15. c5 {[%clk 0:02:38.3]} 15... e4
{[%clk 0:02:28]} 16. cxd6 {[%clk 0:02:36.8]} 16... Qxd6 {[%clk 0:02:28.4]} 17.
Ne5 {[%clk 0:02:34.9]} 17... Ng5 {[%clk 0:02:25.4]} 18. h4 {[%clk 0:02:33.5]}
18... Nf3+ {[%clk 0:02:13.5]} 19. Nxf3 {[%clk 0:02:32.3]} 19... exf3 {[%clk
0:02:13.7]} 20. Bxf3 {[%clk 0:02:32.9]} 20... Bg4 {[%clk 0:02:04.2]} 21. Bxg4
{[%clk 0:02:27.3]} 21... Nxg4 {[%clk 0:02:03.7]} 22. Ne4 {[%clk 0:02:18.2]}
22... Qd5 {[%clk 0:01:57.6]} 23. Nd2 {[%clk 0:02:04.6]} 23... Bh6 {[%clk
0:01:46.1]} 24. Nf1 {[%clk 0:02:02.5]} 24... Rad8 {[%clk 0:01:43.7]} 25. Rd3
{[%clk 0:01:53.4]} 25... Qf5 {[%clk 0:01:31.7]} 26. Rad1 {[%clk 0:01:51.2]}
26... Nf6 {[%clk 0:01:26.4]} 27. Qe2 {[%clk 0:01:49.2]} 27... Qh3 {[%clk
0:01:24.4]} 28. Qf3 {[%clk 0:01:47.6]} 28... Ne4 {[%clk 0:01:09.9]} 29. Nd2
{[%clk 0:01:38.3]} 29... Nxd2 {[%clk 0:00:44]} 30. R1xd2 {[%clk 0:01:37.1]}
30... Rd5 {[%clk 0:00:44]} 31. Re2 {[%clk 0:01:27.2]} 31... f5 {[%clk
0:00:42.8]} 32. e4 {[%clk 0:01:19]} 32... fxe4 {[%clk 0:00:40.1]} 33. Rxe4
{[%clk 0:01:19.9]} 33... Rxe4 {[%clk 0:00:37.8]} 34. Qxe4 {[%clk 0:01:19.5]}
34... Qf5 {[%clk 0:00:32.9]} 35. Qxf5 {[%clk 0:01:18.1]} 35... Rxf5 {[%clk
0:00:31.7]} 36. f3 {[%clk 0:01:16.8]} 36... Kf7 {[%clk 0:00:31.4]} 37. Kf2
{[%clk 0:01:16.1]} 37... Rd5 {[%clk 0:00:31.2]} 38. Ke2 {[%clk 0:01:13.6]} 38...
Ke6 {[%clk 0:00:31.2]} 39. Bc3 {[%clk 0:01:13.2]} 39... Rf5 {[%clk 0:00:28.9]}
40. Bd2 {[%clk 0:01:09.9]} 40... Bg7 {[%clk 0:00:27.3]} 41. Re3+ {[%clk
0:00:59.7]} 41... Kd7 {[%clk 0:00:24.9]} 42. Kd3 {[%clk 0:00:57]} 42... Rd5
{[%clk 0:00:24.8]} 43. Re4 {[%clk 0:00:56.9]} 43... Rf5 {[%clk 0:00:24.2]} 44.
Bf4 {[%clk 0:00:52.4]} 44... b5 {[%clk 0:00:23.3]} 45. axb5 {[%clk 0:00:50]}
45... axb5 {[%clk 0:00:23.6]} 46. Ke3 {[%clk 0:00:47.5]} 46... Rd5 {[%clk
0:00:21.4]} 47. Be5 {[%clk 0:00:47.1]} 47... Bh6+ {[%clk 0:00:21.7]} 48. f4
{[%clk 0:00:41.2]} 48... Bf8 {[%clk 0:00:20.1]} 49. Kf3 {[%clk 0:00:40.5]} 49...
c5 {[%clk 0:00:19.7]} 50. dxc5 {[%clk 0:00:40.7]} 50... Bxc5 {[%clk 0:00:19.6]}
51. Ke2 {[%clk 0:00:33.4]} 51... Kc6 {[%clk 0:00:18.2]} 52. Bc3 {[%clk
0:00:32.2]} 52... Kd7 {[%clk 0:00:18.3]} 53. Bd2 {[%clk 0:00:23.4]} 53... Kd6
{[%clk 0:00:18.5]} 54. Be3 {[%clk 0:00:23.4]} 54... Ba3 {[%clk 0:00:17.7]} 55.
Re8 {[%clk 0:00:19.7]} 55... Kd7 {[%clk 0:00:17.5]} 56. Rg8 {[%clk 0:00:18.1]}
56... Rd6 {[%clk 0:00:18]} 57. Rb8 {[%clk 0:00:17.7]} 57... Kc6 {[%clk
0:00:17.6]} 58. Rb6+ {[%clk 0:00:17.2]} 58... Kc7 {[%clk 0:00:18.1]} 59. Kf3
{[%clk 0:00:15.6]} 59... Rxb6 {[%clk 0:00:17.8]} 60. Bxb6+ {[%clk 0:00:15.4]}
60... Kxb6 {[%clk 0:00:18.7]} 61. g4 {[%clk 0:00:16]} 61... hxg4+ {[%clk
0:00:18.8]} 62. Kxg4 {[%clk 0:00:16.9]} 62... Bc1 {[%clk 0:00:19.3]} 63. f5
{[%clk 0:00:16.7]} 63... gxf5+ {[%clk 0:00:19.7]} 64. Kxf5 {[%clk 0:00:17.6]}
64... Kc5 {[%clk 0:00:20.2]} 65. Ke4 {[%clk 0:00:18.1]} 65... Kb4 {[%clk
0:00:20.6]} 66. Kd3 {[%clk 0:00:18.6]} 66... Kxb3 {[%clk 0:00:21.1]} 0-1

[Event "Early-Titled-Tuesday-Blitz-September-05-2023"]
[Site "Chess.com"]
[Date "2023.09.05"]
[Round "5"]
[White "Virgo15"]
[Black "Rud_Makarian"]
[Result "1-0"]
[WhiteElo "2710"]
[BlackElo "2927"]
[TimeControl "180+1"]
[EndTime "8:55:26 PDT"]
[Termination "Virgo15 won by resignation"]

1. d4 {[%clk 0:03:00.9]} 1... Nf6 {[%clk 0:03:00.6]} 2. Bf4 {[%clk 0:03:00.9]}
2... c5 {[%clk 0:03:00.8]} 3. d5 {[%clk 0:03:00.8]} 3... b5 {[%clk 0:03:00.1]}
4. e4 {[%clk 0:03:00.5]} 4... Nxe4 {[%clk 0:02:57.3]} 5. Qf3 {[%clk 0:03:01]}
5... Qa5+ {[%clk 0:02:48.7]} 6. Nd2 {[%clk 0:03:00.9]} 6... Nxd2 {[%clk
0:02:42.5]} 7. Bxd2 {[%clk 0:03:00.5]} 7... Qb6 {[%clk 0:02:39.3]} 8. a4 {[%clk
0:02:56]} 8... bxa4 {[%clk 0:02:39.2]} 9. Bc3 {[%clk 0:02:55.7]} 9... d6 {[%clk
0:02:38.2]} 10. Rxa4 {[%clk 0:02:54.6]} 10... Nd7 {[%clk 0:02:37.5]} 11. Rf4
{[%clk 0:02:53.7]} 11... Nf6 {[%clk 0:02:36.9]} 12. g4 {[%clk 0:02:48.9]} 12...
h6 {[%clk 0:02:33.6]} 13. h4 {[%clk 0:02:48.6]} 13... Ba6 {[%clk 0:02:27.4]} 14.
Bxa6 {[%clk 0:02:45.7]} 14... Qxa6 {[%clk 0:02:27.5]} 15. Ne2 {[%clk 0:02:45.2]}
15... Qb7 {[%clk 0:02:23.2]} 16. Bxf6 {[%clk 0:02:41.5]} 16... gxf6 {[%clk
0:02:23.2]} 17. b3 {[%clk 0:02:33.5]} 17... h5 {[%clk 0:02:21]} 18. g5 {[%clk
0:02:30.5]} 18... Bg7 {[%clk 0:02:18.7]} 19. O-O {[%clk 0:02:09.8]} 19... O-O-O
{[%clk 0:02:02]} 20. Ra4 {[%clk 0:02:02.8]} 20... fxg5 {[%clk 0:02:01.9]} 21.
hxg5 {[%clk 0:02:01.9]} 21... Be5 {[%clk 0:02:00.2]} 22. c3 {[%clk 0:01:58.8]}
22... Rdg8 {[%clk 0:01:58.9]} 23. Rfa1 {[%clk 0:01:56.3]} 23... Rxg5+ {[%clk
0:01:57.3]} 24. Kf1 {[%clk 0:01:50.1]} 24... Kb8 {[%clk 0:01:42.4]} 25. Qxf7
{[%clk 0:01:39.4]} 25... Bf6 {[%clk 0:01:33.1]} 26. Rxa7 {[%clk 0:01:21.7]}
26... Qxa7 {[%clk 0:01:30]} 27. Rxa7 {[%clk 0:01:22.6]} 27... Kxa7 {[%clk
0:01:30.6]} 28. Nf4 {[%clk 0:01:13.3]} 28... h4 {[%clk 0:01:29]} 29. Qe6 {[%clk
0:01:10]} 29... Rd8 {[%clk 0:01:25.1]} 30. Nd3 {[%clk 0:00:56.5]} 30... Kb6
{[%clk 0:01:21.8]} 31. b4 {[%clk 0:00:56.5]} 31... cxb4 {[%clk 0:01:03.6]} 32.
Qe3+ {[%clk 0:00:56.4]} 32... Kb5 {[%clk 0:01:01.9]} 33. cxb4 {[%clk 0:00:49.7]}
33... Rxd5 {[%clk 0:00:57.2]} 34. Nf4 {[%clk 0:00:46]} 34... Rd1+ {[%clk
0:00:52]} 35. Ke2 {[%clk 0:00:44.1]} 35... Rd4 {[%clk 0:00:45]} 36. Ne6 {[%clk
0:00:40.7]} 36... Rd5 {[%clk 0:00:45.1]} 37. Kf3 {[%clk 0:00:27.4]} 37... Rf5+
{[%clk 0:00:41.8]} 38. Kg4 {[%clk 0:00:24.1]} 38... Re5 {[%clk 0:00:41.8]} 39.
Qd3+ {[%clk 0:00:23.1]} 39... Kxb4 {[%clk 0:00:36.2]} 40. Nxd8 {[%clk 0:00:24]}
40... Kc5 {[%clk 0:00:35.1]} 41. Nf7 {[%clk 0:00:20.5]} 41... Rd5 {[%clk
0:00:32.4]} 42. Qa3+ {[%clk 0:00:19.8]} 42... Kd4 {[%clk 0:00:28.8]} 43. Nd8
{[%clk 0:00:14.5]} 43... Rg5+ {[%clk 0:00:24.5]} 44. Kh3 {[%clk 0:00:14.5]}
44... Rg1 {[%clk 0:00:24.4]} 45. Ne6+ {[%clk 0:00:13.2]} 45... Ke5 {[%clk
0:00:24.2]} 46. Qe3+ {[%clk 0:00:13]} 46... Kd5 {[%clk 0:00:24.3]} 47. Nf4+
{[%clk 0:00:13]} 47... Kc4 {[%clk 0:00:23.7]} 48. Qe4+ {[%clk 0:00:11.6]} 48...
Kc5 {[%clk 0:00:24.1]} 49. Nd5 {[%clk 0:00:11.3]} 49... Be5 {[%clk 0:00:18.5]}
50. f4 {[%clk 0:00:09.9]} 50... Bd4 {[%clk 0:00:12.4]} 51. Nxe7 {[%clk
0:00:10.2]} 51... Rg3+ {[%clk 0:00:10.5]} 52. Kxh4 {[%clk 0:00:10.3]} 52... Bf2
{[%clk 0:00:10.6]} 53. Qc2+ {[%clk 0:00:07.7]} 1-0

[Event "Early-Titled-Tuesday-Blitz-September-05-2023"]
[Site "Chess.com"]
[Date "2023.09.05"]
[Round "5"]
[White "Orest_Vovk"]
[Black "aakankshachess"]
[Result "1-0"]
[WhiteElo "2605"]
[BlackElo "2448"]
[TimeControl "180+1"]
[EndTime "8:55:27 PDT"]
[Termination "Orest_Vovk won on time"]

1. e4 {[%clk 0:02:53.5]} 1... c5 {[%clk 0:02:53.8]} 2. Nf3 {[%clk 0:02:52.2]}
2... d6 {[%clk 0:02:53.8]} 3. Bb5+ {[%clk 0:02:51.7]} 3... Nc6 {[%clk
0:02:50.2]} 4. Bxc6+ {[%clk 0:02:49.3]} 4... bxc6 {[%clk 0:02:49.4]} 5. O-O
{[%clk 0:02:50.2]} 5... Bg4 {[%clk 0:02:22.9]} 6. h3 {[%clk 0:02:46.6]} 6...
Bxf3 {[%clk 0:02:21.4]} 7. Qxf3 {[%clk 0:02:45.8]} 7... e5 {[%clk 0:02:20.4]} 8.
d3 {[%clk 0:02:39.6]} 8... Nf6 {[%clk 0:02:19.7]} 9. Bg5 {[%clk 0:02:39]} 9...
Be7 {[%clk 0:02:19.4]} 10. Bxf6 {[%clk 0:02:37.1]} 10... Bxf6 {[%clk 0:02:19.5]}
11. Na3 {[%clk 0:02:36.3]} 11... O-O {[%clk 0:02:12]} 12. Nc4 {[%clk 0:02:35.5]}
12... Rb8 {[%clk 0:01:59.9]} 13. b3 {[%clk 0:02:32]} 13... d5 {[%clk 0:01:57.3]}
14. Ne3 {[%clk 0:02:28.2]} 14... Qd7 {[%clk 0:01:46.3]} 15. exd5 {[%clk
0:02:25.7]} 15... e4 {[%clk 0:01:46.2]} 16. dxe4 {[%clk 0:02:02.4]} 16... Bxa1
{[%clk 0:01:44.3]} 17. Rxa1 {[%clk 0:02:03.3]} 17... cxd5 {[%clk 0:01:44.3]} 18.
Nxd5 {[%clk 0:01:59]} 18... Rfe8 {[%clk 0:01:40.9]} 19. Qf4 {[%clk 0:01:52.7]}
19... Rbd8 {[%clk 0:01:31.8]} 20. c4 {[%clk 0:01:48.7]} 20... Qd6 {[%clk
0:01:28.3]} 21. Qxd6 {[%clk 0:01:41.1]} 21... Rxd6 {[%clk 0:01:28.4]} 22. f3
{[%clk 0:01:40]} 22... g6 {[%clk 0:01:10.4]} 23. Kf2 {[%clk 0:01:32.7]} 23...
Kg7 {[%clk 0:01:09.7]} 24. g4 {[%clk 0:01:31.3]} 24... Rh8 {[%clk 0:00:55.3]}
25. f4 {[%clk 0:01:27.7]} 25... h6 {[%clk 0:00:52.3]} 26. Kf3 {[%clk 0:01:21.5]}
26... Ra6 {[%clk 0:00:48.7]} 27. e5 {[%clk 0:01:18.5]} 27... Rb8 {[%clk
0:00:47]} 28. f5 {[%clk 0:01:00.9]} 28... Rxb3+ {[%clk 0:00:44.1]} 29. Ke4
{[%clk 0:00:49.3]} 29... gxf5+ {[%clk 0:00:33.8]} 30. gxf5 {[%clk 0:00:47.8]}
30... Rxh3 {[%clk 0:00:33.6]} 31. Rg1+ {[%clk 0:00:43.8]} 31... Kf8 {[%clk
0:00:21.6]} 32. Nf6 {[%clk 0:00:41.9]} 32... Ke7 {[%clk 0:00:19.9]} 33. Nd5+
{[%clk 0:00:35.7]} 33... Kf8 {[%clk 0:00:19.3]} 34. Nf6 {[%clk 0:00:10.2]} 34...
Ke7 {[%clk 0:00:19.5]} 35. Rg8 {[%clk 0:00:07.5]} 35... Rxf6 {[%clk 0:00:16.5]}
36. exf6+ {[%clk 0:00:08.4]} 36... Kxf6 {[%clk 0:00:16.9]} 37. Ra8 {[%clk
0:00:08.2]} 37... Ra3 {[%clk 0:00:12.2]} 38. Rc8 {[%clk 0:00:06.5]} 38... Rxa2
{[%clk 0:00:11.5]} 39. Rxc5 {[%clk 0:00:05.8]} 39... h5 {[%clk 0:00:10.3]} 40.
Kf4 {[%clk 0:00:04.1]} 40... Rf2+ {[%clk 0:00:09.5]} 41. Ke4 {[%clk 0:00:03.6]}
41... h4 {[%clk 0:00:09.5]} 42. Rc6+ {[%clk 0:00:04]} 42... Kg5 {[%clk
0:00:09.6]} 43. Rc7 {[%clk 0:00:04.7]} 43... Re2+ {[%clk 0:00:08.3]} 44. Kd3
{[%clk 0:00:04.9]} 44... Re5 {[%clk 0:00:06.3]} 45. Rxf7 {[%clk 0:00:04.6]}
45... a5 {[%clk 0:00:04.4]} 46. Rh7 {[%clk 0:00:03.1]} 46... Rxf5 {[%clk
0:00:03.8]} 47. Kd4 {[%clk 0:00:03.5]} 47... Kg4 {[%clk 0:00:02.7]} 48. c5
{[%clk 0:00:03.8]} 48... a4 {[%clk 0:00:02.4]} 49. c6 {[%clk 0:00:03.6]} 49...
a3 {[%clk 0:00:02.6]} 50. c7 {[%clk 0:00:03.9]} 50... Rf8 {[%clk 0:00:02.4]} 51.
Rg7+ {[%clk 0:00:03.7]} 51... Kh3 {[%clk 0:00:01.4]} 52. Rg1 {[%clk 0:00:04.3]}
1-0

[Event "Early-Titled-Tuesday-Blitz-September-05-2023"]
[Site "Chess.com"]
[Date "2023.09.05"]
[Round "5"]
[White "kirillshevchenko"]
[Black "psychokiller48"]
[Result "1-0"]
[WhiteElo "2971"]
[BlackElo "2703"]
[TimeControl "180+1"]
[EndTime "8:55:29 PDT"]
[Termination "kirillshevchenko won on time"]

1. c4 {[%clk 0:02:49.6]} 1... e6 {[%clk 0:02:59.7]} 2. g3 {[%clk 0:02:48.8]}
2... d5 {[%clk 0:03:00.1]} 3. Bg2 {[%clk 0:02:49.4]} 3... Nf6 {[%clk 0:03:00.5]}
4. Nf3 {[%clk 0:02:46.2]} 4... Be7 {[%clk 0:03:00.8]} 5. O-O {[%clk 0:02:46.7]}
5... O-O {[%clk 0:03:01.4]} 6. b3 {[%clk 0:02:46.6]} 6... b6 {[%clk 0:02:58.4]}
7. Bb2 {[%clk 0:02:46.5]} 7... Bb7 {[%clk 0:02:58.3]} 8. e3 {[%clk 0:02:46.9]}
8... c5 {[%clk 0:02:54.3]} 9. Nc3 {[%clk 0:02:31.2]} 9... Nc6 {[%clk 0:02:43.6]}
10. cxd5 {[%clk 0:02:29.4]} 10... Nxd5 {[%clk 0:02:43.4]} 11. Nxd5 {[%clk
0:02:29.6]} 11... Qxd5 {[%clk 0:02:43.6]} 12. d4 {[%clk 0:02:30.1]} 12... Qf5
{[%clk 0:02:43.6]} 13. Ne5 {[%clk 0:02:17.2]} 13... Nxe5 {[%clk 0:02:43.2]} 14.
Bxb7 {[%clk 0:02:18.1]} 14... Rab8 {[%clk 0:02:43.2]} 15. Bg2 {[%clk 0:02:13.2]}
15... Nd3 {[%clk 0:02:42.6]} 16. Ba3 {[%clk 0:01:58]} 16... Nb4 {[%clk
0:02:42.1]} 17. Bxb4 {[%clk 0:01:56.8]} 17... cxb4 {[%clk 0:02:41.9]} 18. Qe2
{[%clk 0:01:48.2]} 18... Rfc8 {[%clk 0:02:38.4]} 19. e4 {[%clk 0:01:46.9]} 19...
Qa5 {[%clk 0:02:37.7]} 20. Rad1 {[%clk 0:01:40]} 20... Rd8 {[%clk 0:02:31.6]}
21. h4 {[%clk 0:01:31.6]} 21... Rbc8 {[%clk 0:02:28.2]} 22. Rfe1 {[%clk
0:01:25.6]} 22... Rc3 {[%clk 0:02:21.4]} 23. d5 {[%clk 0:01:23.9]} 23... e5
{[%clk 0:02:18.5]} 24. Bh3 {[%clk 0:01:18.8]} 24... Bxh4 {[%clk 0:02:00.7]} 25.
d6 {[%clk 0:01:12.2]} 25... Qc5 {[%clk 0:01:56.8]} 26. Rd5 {[%clk 0:01:08.9]}
26... Rxg3+ {[%clk 0:01:40.8]} 27. Bg2 {[%clk 0:01:06.2]} 27... Rxg2+ {[%clk
0:01:10.5]} 28. Kxg2 {[%clk 0:01:06.3]} 28... Qc6 {[%clk 0:01:06.6]} 29. Qh5
{[%clk 0:00:48.3]} 29... Bf6 {[%clk 0:01:02.4]} 30. Rh1 {[%clk 0:00:48.6]} 30...
h6 {[%clk 0:01:00.4]} 31. Rhd1 {[%clk 0:00:49.2]} 31... Qc2 {[%clk 0:00:39.4]}
32. Qf3 {[%clk 0:00:49.3]} 32... Qxa2 {[%clk 0:00:24.3]} 33. Rc1 {[%clk
0:00:49.2]} 33... Qa6 {[%clk 0:00:16.8]} 34. Rc7 {[%clk 0:00:48.4]} 34... b5
{[%clk 0:00:16.9]} 35. Qd3 {[%clk 0:00:42.3]} 35... Bg5 {[%clk 0:00:11.2]} 36.
Qxb5 {[%clk 0:00:21.1]} 36... Rxd6 {[%clk 0:00:09.2]} 37. Qe8+ {[%clk
0:00:13.6]} 37... Kh7 {[%clk 0:00:09.1]} 38. Rxd6 {[%clk 0:00:14]} 38... Qxd6
{[%clk 0:00:08.6]} 39. Qxf7 {[%clk 0:00:14.7]} 39... Bf6 {[%clk 0:00:07.5]} 40.
Qd7 {[%clk 0:00:11.8]} 40... Qxd7 {[%clk 0:00:03.3]} 41. Rxd7 {[%clk 0:00:12.3]}
41... Bg5 {[%clk 0:00:03.3]} 42. Rxa7 {[%clk 0:00:09.1]} 42... Bd2 {[%clk
0:00:03.9]} 43. Kg3 {[%clk 0:00:06.9]} 43... h5 {[%clk 0:00:03.8]} 44. Ra6
{[%clk 0:00:06.3]} 44... g6 {[%clk 0:00:03.7]} 45. Re6 {[%clk 0:00:05.4]} 45...
Bc3 {[%clk 0:00:03.6]} 46. f4 {[%clk 0:00:06.1]} 46... exf4+ {[%clk 0:00:04]}
47. Kxf4 {[%clk 0:00:07]} 47... Kg7 {[%clk 0:00:04.6]} 48. e5 {[%clk 0:00:07.2]}
48... Kf7 {[%clk 0:00:04.7]} 49. Rf6+ {[%clk 0:00:07.5]} 49... Kg7 {[%clk
0:00:04.7]} 50. Rb6 {[%clk 0:00:08.1]} 50... Kf7 {[%clk 0:00:05.1]} 51. Rc6
{[%clk 0:00:06.7]} 51... h4 {[%clk 0:00:04.4]} 52. e6+ {[%clk 0:00:03.7]} 52...
Kf6 {[%clk 0:00:04.2]} 53. Kg4 {[%clk 0:00:03.7]} 53... g5 {[%clk 0:00:04.5]}
54. Rb6 {[%clk 0:00:03.7]} 54... Bd2 {[%clk 0:00:03.9]} 55. Rd6 {[%clk
0:00:03.5]} 55... Bf4 {[%clk 0:00:02.5]} 56. Ra6 {[%clk 0:00:02.3]} 56... Bd2
{[%clk 0:00:01.9]} 57. Rc6 {[%clk 0:00:03]} 1-0